[Event "Late-Titled-Tuesday-Blitz-February-27-2024"]
[Site "Chess.com"]
[Date "2024.02.27"]
[Round "9"]
[White "ArtemDyachuk"]
[Black "jcibarra"]
[Result "1-0"]
[WhiteElo "2727"]
[BlackElo "2914"]
[TimeControl "180+1"]
[EndTime "15:42:36 PST"]
[Termination "ArtemDyachuk won by checkmate"]

1. d4 {[%clk 0:03:00.9]} 1... Nf6 {[%clk 0:03:00]} 2. c4 {[%clk 0:03:00.7]} 2...
d6 {[%clk 0:03:00.7]} 3. Nf3 {[%clk 0:03:00.3]} 3... g6 {[%clk 0:03:00.9]} 4. g3
{[%clk 0:03:00.8]} 4... Bf5 {[%clk 0:03:00.8]} 5. Nc3 {[%clk 0:02:58.4]} 5...
Ne4 {[%clk 0:03:00.9]} 6. Bg2 {[%clk 0:02:52.2]} 6... Nxc3 {[%clk 0:03:00.9]} 7.
bxc3 {[%clk 0:02:53.1]} 7... Be4 {[%clk 0:03:01.2]} 8. O-O {[%clk 0:02:53]} 8...
Bg7 {[%clk 0:03:01.1]} 9. Re1 {[%clk 0:02:50.5]} 9... O-O {[%clk 0:03:00.9]} 10.
a4 {[%clk 0:02:44.3]} 10... b6 {[%clk 0:03:00.9]} 11. a5 {[%clk 0:02:43.9]}
11... Nc6 {[%clk 0:03:01.3]} 12. axb6 {[%clk 0:02:43.2]} 12... axb6 {[%clk
0:03:02.2]} 13. Bb2 {[%clk 0:02:42.3]} 13... Na5 {[%clk 0:02:54.6]} 14. Nd2
{[%clk 0:02:41.8]} 14... Bxg2 {[%clk 0:02:54.7]} 15. Kxg2 {[%clk 0:02:42.7]}
15... c5 {[%clk 0:02:55]} 16. e4 {[%clk 0:02:40.2]} 16... e5 {[%clk 0:02:51.9]}
17. d5 {[%clk 0:02:30.4]} 17... Bh6 {[%clk 0:02:51.7]} 18. Bc1 {[%clk
0:02:13.6]} 18... Bxd2 {[%clk 0:02:45.2]} 19. Bxd2 {[%clk 0:02:14.5]} 19... Nxc4
{[%clk 0:02:45.2]} 20. Bh6 {[%clk 0:02:13.5]} 20... Re8 {[%clk 0:02:41.2]} 21.
Rxa8 {[%clk 0:02:04.7]} 21... Qxa8 {[%clk 0:02:40.7]} 22. Qf3 {[%clk 0:02:04.6]}
22... Qd8 {[%clk 0:02:33.5]} 23. Ra1 {[%clk 0:02:03.7]} 23... Na5 {[%clk
0:02:12.6]} 24. h4 {[%clk 0:01:56.9]} 24... f6 {[%clk 0:02:11.9]} 25. h5 {[%clk
0:01:51]} 25... Kf7 {[%clk 0:02:11.3]} 26. Rh1 {[%clk 0:01:46]} 26... Rh8 {[%clk
0:02:09]} 27. Bg5 {[%clk 0:01:39.2]} 27... Kg7 {[%clk 0:01:45.8]} 28. hxg6
{[%clk 0:01:33.1]} 28... h6 {[%clk 0:01:45.5]} 29. Bc1 {[%clk 0:01:20.7]} 29...
Qe8 {[%clk 0:01:29.6]} 30. Rh4 {[%clk 0:01:15]} 30... h5 {[%clk 0:01:12]} 31.
Qf5 {[%clk 0:01:03.3]} 31... Qxg6 {[%clk 0:01:11]} 32. Qd7+ {[%clk 0:01:03.2]}
32... Qf7 {[%clk 0:01:09.1]} 33. Qxd6 {[%clk 0:01:03.2]} 33... Nc4 {[%clk
0:01:09.3]} 34. Qc6 {[%clk 0:01:03]} 34... Rb8 {[%clk 0:01:01.9]} 35. Rxh5
{[%clk 0:00:48.5]} 35... Qxh5 {[%clk 0:00:58.7]} 36. Qc7+ {[%clk 0:00:48.6]}
36... Kg6 {[%clk 0:00:57.6]} 37. Qxb8 {[%clk 0:00:48.2]} 37... Qe2 {[%clk
0:00:57.5]} 38. Qg8+ {[%clk 0:00:47.2]} 38... Kh5 {[%clk 0:00:56]} 39. Qh7+
{[%clk 0:00:47.3]} 39... Kg4 {[%clk 0:00:55.7]} 40. Qh4# {[%clk 0:00:47.8]} 1-0

[Event "Late-Titled-Tuesday-Blitz-February-27-2024"]
[Site "Chess.com"]
[Date "2024.02.27"]
[Round "9"]
[White "Mikhail_Golubev"]
[Black "Josetricks"]
[Result "1-0"]
[WhiteElo "2636"]
[BlackElo "2485"]
[TimeControl "180+1"]
[EndTime "15:42:38 PST"]
[Termination "Mikhail_Golubev won by resignation"]

1. e4 {[%clk 0:03:00.9]} 1... c5 {[%clk 0:02:56.2]} 2. Nf3 {[%clk 0:03:00.6]}
2... e6 {[%clk 0:02:55.3]} 3. d4 {[%clk 0:03:00.1]} 3... cxd4 {[%clk 0:02:55.7]}
4. Nxd4 {[%clk 0:03:00.9]} 4... Bc5 {[%clk 0:02:56]} 5. Nc3 {[%clk 0:02:56]}
5... Qb6 {[%clk 0:02:53.9]} 6. Be3 {[%clk 0:02:53]} 6... Nc6 {[%clk 0:02:53.5]}
7. Ndb5 {[%clk 0:02:24.9]} 7... Bxe3 {[%clk 0:02:49.7]} 8. fxe3 {[%clk
0:02:24.7]} 8... Qxe3+ {[%clk 0:02:50.3]} 9. Be2 {[%clk 0:02:21.2]} 9... Rb8
{[%clk 0:02:47.1]} 10. Rf1 {[%clk 0:02:06.9]} 10... f6 {[%clk 0:02:42.7]} 11.
Nd6+ {[%clk 0:01:41.8]} 11... Ke7 {[%clk 0:02:39.6]} 12. Nc4 {[%clk 0:01:26.6]}
12... Qd4 {[%clk 0:02:31]} 13. Bd3 {[%clk 0:01:23.8]} 13... b5 {[%clk
0:02:23.9]} 14. Qg4 {[%clk 0:01:16.5]} 14... g6 {[%clk 0:01:42.3]} 15. Ne2
{[%clk 0:01:01.8]} 15... Qc5 {[%clk 0:01:34.7]} 16. Nd2 {[%clk 0:01:01.8]} 16...
Ne5 {[%clk 0:01:18.8]} 17. Qg3 {[%clk 0:01:02]} 17... Nh6 {[%clk 0:01:12.8]} 18.
Nb3 {[%clk 0:00:57.3]} 18... Qb4+ {[%clk 0:01:08.4]} 19. Nc3 {[%clk 0:00:57]}
19... Nhf7 {[%clk 0:01:04.6]} 20. O-O-O {[%clk 0:00:54.4]} 20... Nxd3+ {[%clk
0:00:58.3]} 21. Rxd3 {[%clk 0:00:52.1]} 21... Ne5 {[%clk 0:00:56]} 22. Rd4
{[%clk 0:00:49.2]} 22... Nc4 {[%clk 0:00:44.8]} 23. Qxb8 {[%clk 0:00:48.7]}
23... a5 {[%clk 0:00:40]} 24. Qxb5 {[%clk 0:00:37]} 24... Ne3 {[%clk 0:00:33.6]}
25. Rxb4 {[%clk 0:00:33.8]} 1-0

[Event "Late-Titled-Tuesday-Blitz-February-27-2024"]
[Site "Chess.com"]
[Date "2024.02.27"]
[Round "9"]
[White "The_Machine04"]
[Black "platy3"]
[Result "0-1"]
[WhiteElo "2815"]
[BlackElo "2956"]
[TimeControl "180+1"]
[EndTime "15:42:48 PST"]
[Termination "platy3 won by resignation"]

1. d4 {[%clk 0:03:00.9]} 1... Nf6 {[%clk 0:02:59.3]} 2. Nf3 {[%clk 0:03:01]}
2... d5 {[%clk 0:02:59.2]} 3. e3 {[%clk 0:03:00.8]} 3... c6 {[%clk 0:02:58.4]}
4. Nbd2 {[%clk 0:03:00.8]} 4... Bf5 {[%clk 0:02:58.6]} 5. Ne5 {[%clk 0:03:01.2]}
5... Nfd7 {[%clk 0:02:48.4]} 6. Qf3 {[%clk 0:02:57.2]} 6... Bg6 {[%clk
0:02:45.4]} 7. Nxg6 {[%clk 0:02:54.7]} 7... hxg6 {[%clk 0:02:46.3]} 8. Bd3
{[%clk 0:02:48.3]} 8... e5 {[%clk 0:02:43.8]} 9. e4 {[%clk 0:02:48.7]} 9... f5
{[%clk 0:02:17.2]} 10. Qg3 {[%clk 0:01:32.5]} 10... Qf6 {[%clk 0:02:16.9]} 11.
dxe5 {[%clk 0:01:25.5]} 11... Nxe5 {[%clk 0:02:16.6]} 12. exd5 {[%clk
0:01:23.6]} 12... Bd6 {[%clk 0:02:16.4]} 13. Qe3 {[%clk 0:01:15.9]} 13... O-O
{[%clk 0:02:09.5]} 14. Nf3 {[%clk 0:01:00.6]} 14... Nxf3+ {[%clk 0:01:35.1]} 15.
Qxf3 {[%clk 0:01:01.5]} 15... Re8+ {[%clk 0:01:35.5]} 16. Kf1 {[%clk 0:00:57.8]}
16... Nd7 {[%clk 0:01:18.6]} 17. dxc6 {[%clk 0:00:56]} 17... bxc6 {[%clk
0:01:19.1]} 18. Bc4+ {[%clk 0:00:17]} 18... Kf8 {[%clk 0:01:18.9]} 19. Qxc6
{[%clk 0:00:11.9]} 19... Re1+ {[%clk 0:01:15.8]} 20. Kxe1 {[%clk 0:00:10.8]}
20... Bb4+ {[%clk 0:01:16.7]} 21. Bd2 {[%clk 0:00:10.2]} 21... Bxd2+ {[%clk
0:01:15.7]} 22. Kxd2 {[%clk 0:00:11.1]} 22... Qxc6 {[%clk 0:01:15.9]} 23. Bd3
{[%clk 0:00:12]} 23... Nc5 {[%clk 0:01:13.2]} 24. Rhe1 {[%clk 0:00:11.9]} 24...
Rd8 {[%clk 0:01:12.8]} 25. Re3 {[%clk 0:00:11.8]} 25... Qxg2 {[%clk 0:01:11.3]}
26. Rae1 {[%clk 0:00:11.4]} 26... Nxd3 {[%clk 0:01:05]} 27. cxd3 {[%clk
0:00:11.5]} 27... Qxh2 {[%clk 0:01:04.3]} 28. R1e2 {[%clk 0:00:11.3]} 28... Qd6
{[%clk 0:01:03]} 29. Kc2 {[%clk 0:00:11.2]} 29... Kf7 {[%clk 0:01:02.9]} 30. a3
{[%clk 0:00:11.2]} 30... f4 {[%clk 0:01:02.1]} 31. Rf3 {[%clk 0:00:11.2]} 31...
Qc6+ {[%clk 0:01:02.5]} 0-1

[Event "Late-Titled-Tuesday-Blitz-February-27-2024"]
[Site "Chess.com"]
[Date "2024.02.27"]
[Round "9"]
[White "Binary010"]
[Black "NMJeevanK"]
[Result "1-0"]
[WhiteElo "2807"]
[BlackElo "2607"]
[TimeControl "180+1"]
[EndTime "15:42:52 PST"]
[Termination "Binary010 won by resignation"]

1. d4 {[%clk 0:03:00.9]} 1... d6 {[%clk 0:02:58.7]} 2. e4 {[%clk 0:03:00.1]}
2... Nf6 {[%clk 0:02:57.4]} 3. Nc3 {[%clk 0:03:00.8]} 3... e5 {[%clk 0:02:57.3]}
4. Nf3 {[%clk 0:03:01]} 4... Nbd7 {[%clk 0:02:57.3]} 5. Rg1 {[%clk 0:03:01.7]}
5... g6 {[%clk 0:02:57]} 6. g4 {[%clk 0:03:01.4]} 6... Bg7 {[%clk 0:02:57.3]} 7.
Be3 {[%clk 0:02:59.2]} 7... O-O {[%clk 0:02:53.7]} 8. g5 {[%clk 0:02:50.6]} 8...
Nh5 {[%clk 0:02:53.7]} 9. Qd2 {[%clk 0:02:49.7]} 9... c6 {[%clk 0:02:52.3]} 10.
O-O-O {[%clk 0:02:49.6]} 10... Qc7 {[%clk 0:02:45.6]} 11. Kb1 {[%clk 0:02:49.6]}
11... Re8 {[%clk 0:02:43.8]} 12. Be2 {[%clk 0:02:44.4]} 12... a6 {[%clk
0:02:30.9]} 13. Nh4 {[%clk 0:02:20.8]} 13... Nf4 {[%clk 0:02:25.8]} 14. Bxf4
{[%clk 0:02:18.2]} 14... exf4 {[%clk 0:02:26.7]} 15. Qxf4 {[%clk 0:02:18.3]}
15... b5 {[%clk 0:02:24.4]} 16. Nf5 {[%clk 0:01:49.7]} 16... gxf5 {[%clk
0:02:16.1]} 17. exf5 {[%clk 0:01:49.8]} 17... Nb6 {[%clk 0:02:00.1]} 18. g6
{[%clk 0:01:30.6]} 18... fxg6 {[%clk 0:01:49.9]} 19. fxg6 {[%clk 0:01:28]} 19...
h6 {[%clk 0:01:46.9]} 20. Ne4 {[%clk 0:01:18.8]} 20... Nd5 {[%clk 0:01:46.8]}
21. Qf7+ {[%clk 0:01:14.7]} 21... Qxf7 {[%clk 0:01:33.7]} 22. gxf7+ {[%clk
0:01:15.6]} 22... Kxf7 {[%clk 0:01:33.1]} 23. Bh5+ {[%clk 0:01:14.7]} 23... Kf8
{[%clk 0:01:26.6]} 24. Bxe8 {[%clk 0:01:14.9]} 24... Bf5 {[%clk 0:01:01.9]} 25.
Nxd6 {[%clk 0:01:08.2]} 25... Bh7 {[%clk 0:00:51.1]} 26. Bxc6 {[%clk 0:01:08.2]}
26... Rd8 {[%clk 0:00:48.2]} 27. Bxd5 {[%clk 0:00:55.7]} 27... Rxd6 {[%clk
0:00:47]} 28. Bb3 {[%clk 0:00:54.8]} 28... a5 {[%clk 0:00:45.1]} 29. a4 {[%clk
0:00:54]} 29... bxa4 {[%clk 0:00:40.5]} 30. Bxa4 {[%clk 0:00:54.9]} 30... Bxd4
{[%clk 0:00:40.3]} 31. Rg4 {[%clk 0:00:48.9]} 31... Be5 {[%clk 0:00:33.7]} 32.
Rxd6 {[%clk 0:00:49.1]} 32... Bxd6 {[%clk 0:00:34.6]} 33. Rd4 {[%clk 0:00:48.9]}
33... Bc5 {[%clk 0:00:31.9]} 34. Rd5 {[%clk 0:00:46.5]} 34... Bxf2 {[%clk
0:00:31.4]} 35. Rxa5 {[%clk 0:00:45.9]} 1-0

[Event "Late-Titled-Tuesday-Blitz-February-27-2024"]
[Site "Chess.com"]
[Date "2024.02.27"]
[Round "9"]
[White "GmSergioBarrientos"]
[Black "ACollins05"]
[Result "0-1"]
[WhiteElo "2721"]
[BlackElo "2610"]
[TimeControl "180+1"]
[EndTime "15:42:53 PST"]
[Termination "ACollins05 won by resignation"]

1. Nf3 {[%clk 0:02:59.9]} 1... d5 {[%clk 0:02:59.2]} 2. e3 {[%clk 0:02:58.7]}
2... Nf6 {[%clk 0:02:58.8]} 3. c4 {[%clk 0:02:59]} 3... e6 {[%clk 0:02:58.7]} 4.
Nc3 {[%clk 0:02:58.8]} 4... Be7 {[%clk 0:02:58.2]} 5. b3 {[%clk 0:02:59.1]} 5...
dxc4 {[%clk 0:02:58.2]} 6. bxc4 {[%clk 0:02:58.9]} 6... c5 {[%clk 0:02:58.5]} 7.
Be2 {[%clk 0:02:55.3]} 7... Nc6 {[%clk 0:02:58.2]} 8. O-O {[%clk 0:02:55.8]}
8... O-O {[%clk 0:02:58.3]} 9. a4 {[%clk 0:02:53.8]} 9... b6 {[%clk 0:02:58.3]}
10. d3 {[%clk 0:02:53.9]} 10... Bb7 {[%clk 0:02:57.8]} 11. Bb2 {[%clk
0:02:54.2]} 11... Rc8 {[%clk 0:02:57.2]} 12. Qb3 {[%clk 0:02:54.4]} 12... Qc7
{[%clk 0:02:55.2]} 13. Rfd1 {[%clk 0:02:54.5]} 13... Rfd8 {[%clk 0:02:54.8]} 14.
h3 {[%clk 0:02:54.9]} 14... h6 {[%clk 0:02:43.1]} 15. Rac1 {[%clk 0:02:54.4]}
15... Qb8 {[%clk 0:02:41.7]} 16. Qa2 {[%clk 0:02:49.5]} 16... Nb4 {[%clk
0:02:40.4]} 17. Qb1 {[%clk 0:02:47.2]} 17... Bc6 {[%clk 0:02:37.1]} 18. Ne1
{[%clk 0:02:46.5]} 18... a5 {[%clk 0:02:33]} 19. Nb5 {[%clk 0:02:44.5]} 19...
Qb7 {[%clk 0:02:28.1]} 20. Bc3 {[%clk 0:02:43.6]} 20... Ne8 {[%clk 0:02:25]} 21.
Rd2 {[%clk 0:02:42.1]} 21... Nd6 {[%clk 0:02:23.8]} 22. Rcd1 {[%clk 0:02:40.9]}
22... Nxb5 {[%clk 0:02:22.9]} 23. cxb5 {[%clk 0:02:40.6]} 23... Be8 {[%clk
0:02:21.2]} 24. Qb2 {[%clk 0:02:40.3]} 24... Bf8 {[%clk 0:02:17.9]} 25. Bf3
{[%clk 0:02:40.4]} 25... Qc7 {[%clk 0:02:14]} 26. Nc2 {[%clk 0:02:39.8]} 26...
f6 {[%clk 0:02:10.9]} 27. Na1 {[%clk 0:02:36.4]} 27... Bg6 {[%clk 0:02:09.1]}
28. Be2 {[%clk 0:02:36.3]} 28... e5 {[%clk 0:02:05.4]} 29. Nb3 {[%clk 0:02:36]}
29... Rd7 {[%clk 0:02:02]} 30. Bxb4 {[%clk 0:02:18.5]} 30... cxb4 {[%clk
0:01:58.1]} 31. Bg4 {[%clk 0:02:18.2]} 31... f5 {[%clk 0:01:57.1]} 32. Bf3
{[%clk 0:02:18]} 32... Rcd8 {[%clk 0:01:51.6]} 33. Bc6 {[%clk 0:02:16]} 33...
Rd6 {[%clk 0:01:50.5]} 34. d4 {[%clk 0:02:12.9]} 34... exd4 {[%clk 0:01:42.1]}
35. Nxd4 {[%clk 0:02:13]} 35... Be7 {[%clk 0:01:35.6]} 36. Qb3+ {[%clk
0:02:03.8]} 36... Bf7 {[%clk 0:01:34.9]} 37. Qb1 {[%clk 0:02:03.2]} 37... g6
{[%clk 0:01:29.6]} 38. Bf3 {[%clk 0:02:02.4]} 38... Bf6 {[%clk 0:01:27.5]} 39.
Rc1 {[%clk 0:01:59]} 39... Qd7 {[%clk 0:01:19.6]} 40. Rc6 {[%clk 0:01:54.9]}
40... Bxd4 {[%clk 0:01:16.1]} 41. Rxd6 {[%clk 0:01:47]} 41... Qxd6 {[%clk
0:01:17]} 42. Rxd4 {[%clk 0:01:47.3]} 42... Qe7 {[%clk 0:01:17.2]} 43. Qc1
{[%clk 0:01:43.1]} 43... Rxd4 {[%clk 0:01:14.8]} 44. exd4 {[%clk 0:01:44]} 44...
b3 {[%clk 0:01:14.7]} 45. d5 {[%clk 0:01:38.1]} 45... Qb4 {[%clk 0:01:12.5]} 46.
Qb2 {[%clk 0:01:29.6]} 46... Qxa4 {[%clk 0:01:07.8]} 47. d6 {[%clk 0:01:29.6]}
47... Qxb5 {[%clk 0:01:07.9]} 48. Be2 {[%clk 0:01:23.9]} 48... Qc6 {[%clk
0:01:03.9]} 49. Qe5 {[%clk 0:01:23.8]} 49... b2 {[%clk 0:00:51.5]} 50. Qxb2
{[%clk 0:01:23.7]} 50... Qxd6 {[%clk 0:00:51.7]} 51. Bf3 {[%clk 0:01:23.9]}
51... a4 {[%clk 0:00:48.6]} 52. Qc1 {[%clk 0:01:23.4]} 52... Kg7 {[%clk
0:00:42.7]} 53. Qc3+ {[%clk 0:01:22.9]} 53... Qf6 {[%clk 0:00:42.7]} 54. Qc7
{[%clk 0:01:23.1]} 54... a3 {[%clk 0:00:41.3]} 55. Qa7 {[%clk 0:01:23.5]} 55...
a2 {[%clk 0:00:40.4]} 0-1

[Event "Late-Titled-Tuesday-Blitz-February-27-2024"]
[Site "Chess.com"]
[Date "2024.02.27"]
[Round "9"]
[White "Supelyel"]
[Black "1g60-1"]
[Result "0-1"]
[WhiteElo "2402"]
[BlackElo "2326"]
[TimeControl "180+1"]
[EndTime "15:43:00 PST"]
[Termination "1g60-1 won by resignation"]

1. c4 {[%clk 0:03:00.9]} 1... g6 {[%clk 0:03:00.1]} 2. Nc3 {[%clk 0:03:00.2]}
2... Bg7 {[%clk 0:03:00.8]} 3. g3 {[%clk 0:02:59.8]} 3... d6 {[%clk 0:03:01.4]}
4. Bg2 {[%clk 0:02:58.6]} 4... Nf6 {[%clk 0:03:02.1]} 5. Nf3 {[%clk 0:02:58.2]}
5... Nc6 {[%clk 0:03:02.7]} 6. O-O {[%clk 0:02:58.3]} 6... e5 {[%clk 0:03:03.3]}
7. d3 {[%clk 0:02:58.6]} 7... Bd7 {[%clk 0:03:02.6]} 8. Bg5 {[%clk 0:02:58.1]}
8... Qc8 {[%clk 0:03:01.9]} 9. Bxf6 {[%clk 0:02:51]} 9... Bxf6 {[%clk
0:03:01.8]} 10. Nd5 {[%clk 0:02:49.3]} 10... Bg7 {[%clk 0:03:02]} 11. b4 {[%clk
0:02:47.6]} 11... Ne7 {[%clk 0:02:51.1]} 12. Rb1 {[%clk 0:02:45.4]} 12... c6
{[%clk 0:02:47.5]} 13. Nxe7 {[%clk 0:02:44.3]} 13... Kxe7 {[%clk 0:02:48.4]} 14.
b5 {[%clk 0:02:12.9]} 14... Rd8 {[%clk 0:02:46.3]} 15. bxc6 {[%clk 0:02:12.2]}
15... Bxc6 {[%clk 0:02:45.7]} 16. Nd2 {[%clk 0:01:57]} 16... Bxg2 {[%clk
0:02:36.5]} 17. Kxg2 {[%clk 0:01:56.8]} 17... Qc6+ {[%clk 0:02:35.6]} 18. e4
{[%clk 0:01:44]} 18... f5 {[%clk 0:02:31.4]} 19. Qb3 {[%clk 0:01:41.5]} 19...
Rab8 {[%clk 0:02:26.5]} 20. Qa3 {[%clk 0:01:29.9]} 20... Bh6 {[%clk 0:02:21.9]}
21. Nf3 {[%clk 0:01:12]} 21... a6 {[%clk 0:02:06]} 22. Nxe5 {[%clk 0:00:41.4]}
22... Qe8 {[%clk 0:01:51.4]} 23. Rfe1 {[%clk 0:00:31.2]} 23... f4 {[%clk
0:01:50.2]} 24. Ng4 {[%clk 0:00:27.1]} 24... Bg5 {[%clk 0:01:41.4]} 25. e5
{[%clk 0:00:27.2]} 25... Kf8 {[%clk 0:01:28.5]} 26. h4 {[%clk 0:00:22.3]} 26...
h5 {[%clk 0:01:22.7]} 27. exd6 {[%clk 0:00:22.4]} 27... Qc6+ {[%clk 0:01:19.6]}
28. Kh2 {[%clk 0:00:15.8]} 28... hxg4 {[%clk 0:01:16.4]} 29. h5 {[%clk
0:00:16.2]} 29... Qxd6 {[%clk 0:01:02.9]} 30. c5 {[%clk 0:00:12.2]} 30... Qxd3
{[%clk 0:00:54.4]} 31. Rb3 {[%clk 0:00:12.3]} 31... fxg3+ {[%clk 0:00:54.1]} 32.
fxg3 {[%clk 0:00:09.5]} 32... Qd2+ {[%clk 0:00:53.8]} 0-1

[Event "Late-Titled-Tuesday-Blitz-February-27-2024"]
[Site "Chess.com"]
[Date "2024.02.27"]
[Round "9"]
[White "Englishman_18"]
[Black "yuriydovzik"]
[Result "1-0"]
[WhiteElo "2304"]
[BlackElo "2123"]
[TimeControl "180+1"]
[EndTime "15:43:12 PST"]
[Termination "Englishman_18 won on time"]

1. Nf3 {[%clk 0:03:00.9]} 1... Nf6 {[%clk 0:02:57.1]} 2. g3 {[%clk 0:03:00]}
2... b6 {[%clk 0:02:56.2]} 3. Bg2 {[%clk 0:02:59]} 3... Bb7 {[%clk 0:02:56.3]}
4. O-O {[%clk 0:02:55]} 4... g6 {[%clk 0:02:56.2]} 5. b3 {[%clk 0:02:54.5]} 5...
Bg7 {[%clk 0:02:56.2]} 6. Bb2 {[%clk 0:02:54.8]} 6... O-O {[%clk 0:02:56.1]} 7.
c4 {[%clk 0:02:54.4]} 7... c5 {[%clk 0:02:50.7]} 8. d4 {[%clk 0:02:53.8]} 8...
d6 {[%clk 0:02:46.3]} 9. d5 {[%clk 0:02:52.2]} 9... a6 {[%clk 0:02:42]} 10. Nc3
{[%clk 0:02:46.5]} 10... Nbd7 {[%clk 0:02:33.1]} 11. Qc2 {[%clk 0:02:45.6]}
11... Ng4 {[%clk 0:02:24]} 12. e4 {[%clk 0:02:39.6]} 12... Nde5 {[%clk
0:02:11.4]} 13. Nxe5 {[%clk 0:02:37.6]} 13... Nxe5 {[%clk 0:02:02.2]} 14. h3
{[%clk 0:02:34.6]} 14... Bc8 {[%clk 0:01:43.3]} 15. f4 {[%clk 0:02:24.3]} 15...
Nd7 {[%clk 0:01:41.7]} 16. Rae1 {[%clk 0:02:21.8]} 16... f6 {[%clk 0:01:24.6]}
17. Nb1 {[%clk 0:01:48.1]} 17... Rf7 {[%clk 0:01:22.3]} 18. Nd2 {[%clk
0:01:47.2]} 18... b5 {[%clk 0:01:17.3]} 19. Nf3 {[%clk 0:01:46.3]} 19... Nb6
{[%clk 0:01:09.6]} 20. e5 {[%clk 0:01:44.1]} 20... bxc4 {[%clk 0:01:03.5]} 21.
bxc4 {[%clk 0:01:36.7]} 21... a5 {[%clk 0:01:03]} 22. exf6 {[%clk 0:01:27.5]}
22... exf6 {[%clk 0:01:00]} 23. Re2 {[%clk 0:01:06.4]} 23... Ba6 {[%clk
0:00:58.6]} 24. Nd2 {[%clk 0:01:05.5]} 24... Re7 {[%clk 0:00:46.6]} 25. Rfe1
{[%clk 0:01:04]} 25... Raa7 {[%clk 0:00:41.4]} 26. Qb3 {[%clk 0:00:56.3]} 26...
Rxe2 {[%clk 0:00:37.3]} 27. Rxe2 {[%clk 0:00:55.2]} 27... a4 {[%clk 0:00:37.3]}
28. Qc2 {[%clk 0:00:48.4]} 28... Re7 {[%clk 0:00:33.8]} 29. Ne4 {[%clk
0:00:48.2]} 29... Kf7 {[%clk 0:00:15.6]} 30. g4 {[%clk 0:00:43.7]} 1-0

[Event "Late-Titled-Tuesday-Blitz-February-27-2024"]
[Site "Chess.com"]
[Date "2024.02.27"]
[Round "9"]
[White "LUISMIGUELOV"]
[Black "kripri"]
[Result "0-1"]
[WhiteElo "2186"]
[BlackElo "2356"]
[TimeControl "180+1"]
[EndTime "15:43:16 PST"]
[Termination "kripri won by resignation"]

1. d4 {[%clk 0:03:00.9]} 1... d5 {[%clk 0:02:07.4]} 2. c3 {[%clk 0:03:00.9]}
2... Nf6 {[%clk 0:02:06.8]} 3. Bg5 {[%clk 0:03:00.1]} 3... e6 {[%clk 0:02:03.9]}
4. Nd2 {[%clk 0:02:59.1]} 4... Be7 {[%clk 0:02:01.5]} 5. e3 {[%clk 0:02:57.1]}
5... O-O {[%clk 0:02:00.8]} 6. Bd3 {[%clk 0:02:56.8]} 6... c5 {[%clk 0:02:01.4]}
7. Qf3 {[%clk 0:02:52.5]} 7... Nc6 {[%clk 0:02:00.9]} 8. h4 {[%clk 0:02:43.4]}
8... e5 {[%clk 0:01:58.9]} 9. Bxf6 {[%clk 0:02:37.2]} 9... Bxf6 {[%clk
0:01:58.5]} 10. dxe5 {[%clk 0:02:23.3]} 10... Nxe5 {[%clk 0:01:54.8]} 11. Qe2
{[%clk 0:02:23.8]} 11... Re8 {[%clk 0:01:48.7]} 12. Ngf3 {[%clk 0:02:18.6]}
12... Bg4 {[%clk 0:01:45.6]} 13. O-O-O {[%clk 0:02:09.9]} 13... Nxd3+ {[%clk
0:01:42.8]} 14. Qxd3 {[%clk 0:02:09.1]} 14... Qd7 {[%clk 0:01:35]} 15. Ng5
{[%clk 0:02:06.3]} 15... Bf5 {[%clk 0:01:34.5]} 16. e4 {[%clk 0:01:55.8]} 16...
Bg6 {[%clk 0:01:10.2]} 17. Qxd5 {[%clk 0:01:52.4]} 17... Qa4 {[%clk 0:01:09.4]}
18. Qb3 {[%clk 0:01:49.7]} 18... Qa6 {[%clk 0:00:59.6]} 19. f3 {[%clk
0:01:41.4]} 19... b5 {[%clk 0:00:55.7]} 20. Nh3 {[%clk 0:01:34.8]} 20... c4
{[%clk 0:00:55.2]} 21. Qa3 {[%clk 0:01:30.8]} 21... Qxa3 {[%clk 0:00:52.2]} 22.
bxa3 {[%clk 0:01:30]} 22... Bxc3 {[%clk 0:00:52.4]} 23. Nf4 {[%clk 0:01:28.7]}
23... f6 {[%clk 0:00:46.3]} 24. Nxg6 {[%clk 0:01:26.7]} 24... hxg6 {[%clk
0:00:45.9]} 25. h5 {[%clk 0:01:27.3]} 25... gxh5 {[%clk 0:00:37.6]} 26. Rxh5
{[%clk 0:01:26]} 26... a6 {[%clk 0:00:33.2]} 27. Rdh1 {[%clk 0:01:21.2]} 27...
Kf7 {[%clk 0:00:29.6]} 28. Nb1 {[%clk 0:01:18.7]} 28... Bd4 {[%clk 0:00:28.9]}
29. Rd5 {[%clk 0:01:17]} 29... Rad8 {[%clk 0:00:29.5]} 30. Rd1 {[%clk
0:01:16.1]} 30... Rxd5 {[%clk 0:00:28]} 31. exd5 {[%clk 0:01:15.5]} 31... Bc5
{[%clk 0:00:28.2]} 32. a4 {[%clk 0:01:10.7]} 32... b4 {[%clk 0:00:27.7]} 33. a5
{[%clk 0:01:09.6]} 33... Re2 {[%clk 0:00:26.8]} 34. d6 {[%clk 0:01:02.8]} 34...
Be3+ {[%clk 0:00:26.6]} 35. Nd2 {[%clk 0:01:00.5]} 35... c3 {[%clk 0:00:26.6]}
36. d7 {[%clk 0:01:00.1]} 36... Ke7 {[%clk 0:00:26.4]} 37. Kc2 {[%clk
0:00:54.5]} 37... Kxd7 {[%clk 0:00:24.2]} 38. Kd3 {[%clk 0:00:51.7]} 38... Rxd2+
{[%clk 0:00:23.6]} 39. Rxd2 {[%clk 0:00:51.6]} 39... Bxd2 {[%clk 0:00:21.6]} 0-1